[Event "Titled Tuesday Blitz May 9 Late 2023"]
[White "Kiseljova, Marya"]
[Black "Butti, Enrique"]
[WhiteFideId "4155009"]
[BlackFideId "3700470"]
[WhiteElo "1831"]
[BlackElo "2080"]
[Result "0-1"]
[Round "11"]
[TimeControl "180+2"]
[Date "2023.05.09"]
[WhiteClock "0:00:31"]
[BlackClock "0:01:07"]

1. d4 {[%clk 0:03:00]}  Nf6 {[%clk 0:02:59]} 2. c4 {[%clk 0:03:00]}  e6 {[%clk 0:02:58]} 3. Bf4 {[%clk 0:03:00]}  d5 {[%clk 0:02:54]} 4. cxd5 {[%clk 0:02:59]}  Nxd5 {[%clk 0:02:48]} 5. Bg3 {[%clk 0:02:56]}  c5 {[%clk 0:02:47]} 6. e4 {[%clk 0:02:51]}  Nf6 {[%clk 0:02:46]} 7. e5 {[%clk 0:02:24]}  Nd5 {[%clk 0:02:42]} 8. Nf3 {[%clk 0:02:16]}  cxd4 {[%clk 0:02:36]} 9. Bb5+ {[%clk 0:02:13]}  Nc6 {[%clk 0:02:27]} 10. Bxc6+ {[%clk 0:02:11]}  bxc6 {[%clk 0:02:27]} 11. Nxd4 {[%clk 0:02:10]}  Bb4+ {[%clk 0:02:23]} 12. Nd2 {[%clk 0:02:02]}  Qb6 {[%clk 0:02:22]} 13. Nb3 {[%clk 0:01:54]}  Ba6 {[%clk 0:02:20]} 14. Qc2 {[%clk 0:01:42]}  c5 {[%clk 0:02:04]} 15. a3 {[%clk 0:01:36]}  Bxd2+ {[%clk 0:02:02]} 16. Nxd2 {[%clk 0:01:36]}  Qb5 {[%clk 0:01:57]} 17. O-O-O {[%clk 0:01:32]}  c4 {[%clk 0:01:50]} 18. Rhe1 {[%clk 0:01:27]}  c3 {[%clk 0:01:28]} 19. Ne4 {[%clk 0:01:26]}  cxb2+ {[%clk 0:01:25]} 20. Kb1 {[%clk 0:01:25]}  O-O {[%clk 0:01:21]} 21. Ng5 {[%clk 0:01:00]}  g6 {[%clk 0:01:18]} 22. Rxd5 {[%clk 0:00:58]}  Qxd5 {[%clk 0:01:14]} 23. Rd1 {[%clk 0:00:49]}  Qa5 {[%clk 0:01:09]} 24. Qc3 {[%clk 0:00:31]}  Qxc3 {[%clk 0:01:07]} 0-1


[Site "https://www.chess.com"]

[Event "Titled Tuesday Blitz May 9 Late 2023"]
[White "Skaric, Djuro"]
[Black "Dragomirescu, Calin"]
[WhiteFideId "934569"]
[BlackFideId "1200895"]
[WhiteElo "2282"]
[BlackElo "2010"]
[Result "0-1"]
[Round "11"]
[TimeControl "180+2"]
[Date "2023.05.09"]
[WhiteClock "0:01:09"]
[BlackClock "0:01:29"]

1. d3 {[%clk 0:03:00]}  g6 {[%clk 0:02:59]} 2. g3 {[%clk 0:03:01]}  Bg7 {[%clk 0:03:00]} 3. Nc3 {[%clk 0:03:00]}  Nf6 {[%clk 0:03:00]} 4. e4 {[%clk 0:03:01]}  d6 {[%clk 0:03:00]} 5. f4 {[%clk 0:03:01]}  c5 {[%clk 0:03:01]} 6. Nf3 {[%clk 0:03:02]}  Nc6 {[%clk 0:03:01]} 7. Bg2 {[%clk 0:03:02]}  O-O {[%clk 0:03:01]} 8. O-O {[%clk 0:03:03]}  Rb8 {[%clk 0:03:01]} 9. h3 {[%clk 0:03:03]}  b5 {[%clk 0:03:00]} 10. g4 {[%clk 0:03:04]}  b4 {[%clk 0:03:00]} 11. Ne2 {[%clk 0:03:02]}  e6 {[%clk 0:02:58]} 12. Ng3 {[%clk 0:03:03]}  Nd7 {[%clk 0:02:57]} 13. h4 {[%clk 0:02:58]}  a5 {[%clk 0:02:57]} 14. h5 {[%clk 0:02:58]}  Nd4 {[%clk 0:02:56]} 15. Ng5 {[%clk 0:02:55]}  Nb6 {[%clk 0:02:44]} 16. Be3 {[%clk 0:02:48]}  Ba6 {[%clk 0:02:36]} 17. Rf2 {[%clk 0:02:47]}  a4 {[%clk 0:02:30]} 18. Rb1 {[%clk 0:02:45]}  Nb5 {[%clk 0:02:26]} 19. f5 {[%clk 0:02:38]}  a3 {[%clk 0:02:23]} 20. fxg6 {[%clk 0:02:32]}  fxg6 {[%clk 0:02:22]} 21. Nxe6 {[%clk 0:02:27]}  Qh4 {[%clk 0:02:18]} 22. Nxf8 {[%clk 0:02:19]}  Rxf8 {[%clk 0:02:16]} 23. hxg6 {[%clk 0:02:15]}  Qxg3 {[%clk 0:02:11]} 24. gxh7+ {[%clk 0:02:15]}  Kh8 {[%clk 0:02:11]} 25. Rxf8+ {[%clk 0:02:13]}  Bxf8 {[%clk 0:02:11]} 26. Bf2 {[%clk 0:02:06]}  Qf4 {[%clk 0:02:03]} 27. d4 {[%clk 0:02:01]}  cxd4 {[%clk 0:01:55]} 28. bxa3 {[%clk 0:01:58]}  Bg7 {[%clk 0:01:46]} 29. Rxb4 {[%clk 0:01:56]}  Be5 {[%clk 0:01:39]} 30. a4 {[%clk 0:01:54]}  Nc3 {[%clk 0:01:36]} 31. Qd3 {[%clk 0:01:23]}  Bxd3 {[%clk 0:01:33]} 32. cxd3 {[%clk 0:01:09]}  Nbxa4 {[%clk 0:01:29]} 0-1


[Site "https://www.chess.com"]

[Event "Titled Tuesday Blitz May 9 Late 2023"]
[White "Escalante Ramirez, Rafael"]
[Black "Stachanczyk, Jacek"]
[WhiteFideId "3900177"]
[BlackFideId "1116657"]
[WhiteElo "2179"]
[BlackElo "2084"]
[Result "0-1"]
[Round "11"]
[TimeControl "180+2"]
[Date "2023.05.09"]
[WhiteClock "0:00:00"]
[BlackClock "0:00:05"]

1. Nf3 {[%clk 0:02:57]}  g6 {[%clk 0:02:59]} 2. d4 {[%clk 0:02:56]}  Nf6 {[%clk 0:02:57]} 3. c4 {[%clk 0:02:56]}  Bg7 {[%clk 0:02:57]} 4. g3 {[%clk 0:02:56]}  d6 {[%clk 0:02:57]} 5. Bg2 {[%clk 0:02:56]}  O-O {[%clk 0:02:58]} 6. O-O {[%clk 0:02:56]}  c6 {[%clk 0:02:54]} 7. Nc3 {[%clk 0:02:55]}  a6 {[%clk 0:02:54]} 8. a4 {[%clk 0:02:54]}  a5 {[%clk 0:02:54]} 9. e4 {[%clk 0:02:51]}  Qc7 {[%clk 0:02:46]} 10. h3 {[%clk 0:02:50]}  e5 {[%clk 0:02:35]} 11. Be3 {[%clk 0:02:46]}  exd4 {[%clk 0:02:31]} 12. Nxd4 {[%clk 0:02:46]}  Re8 {[%clk 0:02:31]} 13. Qc2 {[%clk 0:02:44]}  Na6 {[%clk 0:02:31]} 14. Rad1 {[%clk 0:02:42]}  Nc5 {[%clk 0:02:16]} 15. Bf4 {[%clk 0:02:23]}  Nfd7 {[%clk 0:02:04]} 16. Rfe1 {[%clk 0:02:05]}  Ne5 {[%clk 0:01:50]} 17. b3 {[%clk 0:01:45]}  Ne6 {[%clk 0:01:47]} 18. Be3 {[%clk 0:01:40]}  Nc5 {[%clk 0:01:22]} 19. f4 {[%clk 0:01:34]}  Ned7 {[%clk 0:01:22]} 20. Bf2 {[%clk 0:01:33]}  h5 {[%clk 0:01:16]} 21. Nf3 {[%clk 0:01:19]}  Qb6 {[%clk 0:01:13]} 22. Nd2 {[%clk 0:01:13]}  Qb4 {[%clk 0:01:08]} 23. Na2 {[%clk 0:00:52]}  Qb6 {[%clk 0:01:01]} 24. Kh2 {[%clk 0:00:50]}  Nf6 {[%clk 0:00:53]} 25. Nc3 {[%clk 0:00:43]}  Qb4 {[%clk 0:00:51]} 26. Ncb1 {[%clk 0:00:37]}  Be6 {[%clk 0:00:45]} 27. Kh1 {[%clk 0:00:30]}  Rad8 {[%clk 0:00:43]} 28. Bd4 {[%clk 0:00:30]}  Nfd7 {[%clk 0:00:36]} 29. Bxg7 {[%clk 0:00:29]}  Kxg7 {[%clk 0:00:37]} 30. Nc3 {[%clk 0:00:28]}  Nf6 {[%clk 0:00:35]} 31. f5 {[%clk 0:00:27]}  Bc8 {[%clk 0:00:34]} 32. fxg6 {[%clk 0:00:24]}  fxg6 {[%clk 0:00:34]} 33. Nf3 {[%clk 0:00:22]}  Nfd7 {[%clk 0:00:33]} 34. Ng5 {[%clk 0:00:21]}  Ne5 {[%clk 0:00:32]} 35. Rf1 {[%clk 0:00:16]}  Rf8 {[%clk 0:00:32]} 36. Rxf8 {[%clk 0:00:16]}  Rxf8 {[%clk 0:00:32]} 37. Rxd6 {[%clk 0:00:15]}  Qa3 {[%clk 0:00:25]} 38. Qd2 {[%clk 0:00:14]}  Qa1+ {[%clk 0:00:23]} 39. Kh2 {[%clk 0:00:13]}  Kg8 {[%clk 0:00:16]} 40. Ne2 {[%clk 0:00:12]}  Nxb3 {[%clk 0:00:14]} 41. Qe3 {[%clk 0:00:10]}  Qb2 {[%clk 0:00:12]} 42. Nf4 {[%clk 0:00:09]}  Bg4 {[%clk 0:00:07]} 43. Nxg6 {[%clk 0:00:09]}  Bf3 {[%clk 0:00:07]} 44. Nf4 {[%clk 0:00:03]}  Bxg2 {[%clk 0:00:05]} 45. Nxg2 {[%clk 0:00:00]}  Rf2 {[%clk 0:00:05]} 0-1


[Site "https://www.chess.com"]

[Event "Titled Tuesday Blitz May 9 Late 2023"]
[White "Harish, Neeraj"]
[Black "Joubert, Dantelle"]
[WhiteFideId "30958130"]
[BlackFideId "14310813"]
[WhiteElo "1879"]
[BlackElo "1507"]
[Result "0-1"]
[Round "11"]
[TimeControl "180+2"]
[Date "2023.05.09"]
[WhiteClock "0:00:04"]
[BlackClock "0:00:25"]

1. e4 {[%clk 0:03:00]}  d5 {[%clk 0:02:58]} 2. exd5 {[%clk 0:03:00]}  Qxd5 {[%clk 0:02:40]} 3. Nc3 {[%clk 0:02:59]}  Qd6 {[%clk 0:02:32]} 4. d4 {[%clk 0:02:57]}  Nf6 {[%clk 0:02:31]} 5. Nf3 {[%clk 0:02:57]}  Bg4 {[%clk 0:02:30]} 6. h3 {[%clk 0:02:53]}  Bh5 {[%clk 0:02:28]} 7. g4 {[%clk 0:02:53]}  Bg6 {[%clk 0:02:28]} 8. Ne5 {[%clk 0:02:53]}  c6 {[%clk 0:02:20]} 9. Bf4 {[%clk 0:02:49]}  Qb4 {[%clk 0:02:15]} 10. Rb1 {[%clk 0:02:14]}  e6 {[%clk 0:02:14]} 11. h4 {[%clk 0:02:13]}  Be4 {[%clk 0:02:02]} 12. f3 {[%clk 0:02:10]}  Bd5 {[%clk 0:02:01]} 13. a3 {[%clk 0:01:56]}  Qb6 {[%clk 0:01:55]} 14. Be2 {[%clk 0:01:42]}  Qd8 {[%clk 0:01:47]} 15. Qd2 {[%clk 0:01:39]}  Nbd7 {[%clk 0:01:44]} 16. h5 {[%clk 0:01:35]}  h6 {[%clk 0:01:43]} 17. Kf2 {[%clk 0:01:28]}  Be7 {[%clk 0:01:30]} 18. Rbg1 {[%clk 0:01:24]}  Qb6 {[%clk 0:01:27]} 19. Be3 {[%clk 0:01:04]}  Qc7 {[%clk 0:01:16]} 20. Bf4 {[%clk 0:00:59]}  Bd6 {[%clk 0:01:15]} 21. g5 {[%clk 0:00:36]}  hxg5 {[%clk 0:01:07]} 22. Rxg5 {[%clk 0:00:34]}  O-O-O {[%clk 0:00:56]} 23. Qe3 {[%clk 0:00:19]}  g6 {[%clk 0:00:43]} 24. Rhg1 {[%clk 0:00:15]}  Nxh5 {[%clk 0:00:41]} 25. Bh2 {[%clk 0:00:14]}  Ng7 {[%clk 0:00:37]} 26. R5g2 {[%clk 0:00:11]}  Nf5 {[%clk 0:00:35]} 27. Qd2 {[%clk 0:00:08]}  Nxe5 {[%clk 0:00:28]} 28. dxe5 {[%clk 0:00:08]}  Bc5+ {[%clk 0:00:28]} 29. Kf1 {[%clk 0:00:04]}  Ne3+ {[%clk 0:00:25]} 0-1


[Site "https://www.chess.com"]

[Event "Titled Tuesday Blitz May 9 Late 2023"]
[White "James, Stuart"]
[Black "Chemin, Justo Reinaldo"]
[WhiteFideId "7400489"]
[BlackFideId "2101580"]
[WhiteElo "1950"]
[BlackElo "1940"]
[Result "0-1"]
[Round "11"]
[TimeControl "180+2"]
[Date "2023.05.09"]
[WhiteClock "0:00:14"]
[BlackClock "0:00:08"]

1. e4 {[%clk 0:02:58]}  e6 {[%clk 0:02:58]} 2. d4 {[%clk 0:02:57]}  d5 {[%clk 0:02:59]} 3. Nd2 {[%clk 0:02:57]}  Nf6 {[%clk 0:02:58]} 4. e5 {[%clk 0:02:56]}  Nfd7 {[%clk 0:02:58]} 5. Bd3 {[%clk 0:02:56]}  c5 {[%clk 0:02:58]} 6. c3 {[%clk 0:02:56]}  Nc6 {[%clk 0:02:59]} 7. Ne2 {[%clk 0:02:56]}  cxd4 {[%clk 0:02:59]} 8. cxd4 {[%clk 0:02:56]}  f6 {[%clk 0:02:58]} 9. f4 {[%clk 0:02:55]}  fxe5 {[%clk 0:02:54]} 10. fxe5 {[%clk 0:02:55]}  Nxd4 {[%clk 0:02:42]} 11. Nxd4 {[%clk 0:02:46]}  Qh4+ {[%clk 0:02:41]} 12. g3 {[%clk 0:02:30]}  Qxd4 {[%clk 0:02:40]} 13. Nf3 {[%clk 0:02:29]}  Bb4+ {[%clk 0:02:35]} 14. Kf1 {[%clk 0:02:26]}  Qb6 {[%clk 0:01:59]} 15. Kg2 {[%clk 0:02:24]}  Be7 {[%clk 0:01:47]} 16. Rf1 {[%clk 0:02:16]}  O-O {[%clk 0:01:46]} 17. Qc2 {[%clk 0:02:12]}  h6 {[%clk 0:01:26]} 18. Bh7+ {[%clk 0:01:45]}  Kh8 {[%clk 0:01:23]} 19. Bd3 {[%clk 0:01:30]}  Qc6 {[%clk 0:01:01]} 20. Qe2 {[%clk 0:01:22]}  d4 {[%clk 0:00:57]} 21. Be4 {[%clk 0:01:19]}  Qb6 {[%clk 0:00:51]} 22. Bf4 {[%clk 0:01:02]}  Nc5 {[%clk 0:00:50]} 23. Bb1 {[%clk 0:00:51]}  Bd7 {[%clk 0:00:49]} 24. Nh4 {[%clk 0:00:44]}  Bc6+ {[%clk 0:00:47]} 25. Kh3 {[%clk 0:00:43]}  Bxh4 {[%clk 0:00:33]} 26. gxh4 {[%clk 0:00:43]}  d3 {[%clk 0:00:27]} 27. Bxd3 {[%clk 0:00:42]}  Nxd3 {[%clk 0:00:27]} 28. Qxd3 {[%clk 0:00:42]}  Rf5 {[%clk 0:00:23]} 29. Be3 {[%clk 0:00:39]}  Qxb2 {[%clk 0:00:20]} 30. Rxf5 {[%clk 0:00:39]}  Qxa1 {[%clk 0:00:17]} 31. Rh5 {[%clk 0:00:31]}  Rf8 {[%clk 0:00:15]} 32. Bxh6 {[%clk 0:00:14]}  Rf3+ {[%clk 0:00:14]} 33. Qxf3 {[%clk 0:00:14]}  Bxf3 {[%clk 0:00:13]} 34. Bg5+ {[%clk 0:00:14]}  Kg8 {[%clk 0:00:13]} 35. Rh8+ {[%clk 0:00:13]}  Kxh8 {[%clk 0:00:12]} 36. Kg3 {[%clk 0:00:14]}  Bd5 {[%clk 0:00:11]} 37. Kf4 {[%clk 0:00:14]}  Qf1+ {[%clk 0:00:09]} 38. Kg4 {[%clk 0:00:14]}  Qf5+ {[%clk 0:00:09]} 39. Kg3 {[%clk 0:00:14]}  Qf3# {[%clk 0:00:08]} 0-1


[Site "https://www.chess.com"]

[Event "Titled Tuesday Blitz May 9 Late 2023"]
[White "Tarnowska, Aleksandra"]
[Black "Maluco_do_Natal_00"]
[WhiteFideId "1180967"]
[WhiteElo "1776"]
[BlackElo "2027"]
[Result "1-0"]
[Round "11"]
[TimeControl "180+2"]
[Date "2023.05.09"]
[WhiteClock "0:00:05"]
[BlackClock "0:00:00"]

1. e4 {[%clk 0:03:00]}  c5 {[%clk 0:02:59]} 2. Nf3 {[%clk 0:02:58]}  Nc6 {[%clk 0:02:59]} 3. Bb5 {[%clk 0:02:57]}  e6 {[%clk 0:02:59]} 4. O-O {[%clk 0:02:56]}  Nge7 {[%clk 0:02:59]} 5. c3 {[%clk 0:02:55]}  d5 {[%clk 0:02:58]} 6. exd5 {[%clk 0:02:54]}  Nxd5 {[%clk 0:02:59]} 7. d4 {[%clk 0:02:53]}  a6 {[%clk 0:02:58]} 8. Ba4 {[%clk 0:02:45]}  b5 {[%clk 0:02:58]} 9. Bc2 {[%clk 0:02:38]}  Bb7 {[%clk 0:02:47]} 10. Bg5 {[%clk 0:01:59]}  Be7 {[%clk 0:02:44]} 11. Bxe7 {[%clk 0:01:59]}  Qxe7 {[%clk 0:02:43]} 12. Re1 {[%clk 0:01:55]}  O-O {[%clk 0:02:38]} 13. Nbd2 {[%clk 0:01:50]}  cxd4 {[%clk 0:02:36]} 14. Nxd4 {[%clk 0:01:45]}  Nxd4 {[%clk 0:02:34]} 15. cxd4 {[%clk 0:01:46]}  Rac8 {[%clk 0:01:52]} 16. Rc1 {[%clk 0:01:35]}  Qg5 {[%clk 0:01:32]} 17. Nf3 {[%clk 0:01:21]}  Qh5 {[%clk 0:00:51]} 18. Re5 {[%clk 0:01:13]}  Qh6 {[%clk 0:00:35]} 19. h3 {[%clk 0:00:28]}  g6 {[%clk 0:00:26]} 20. Nh2 {[%clk 0:00:25]}  Nf6 {[%clk 0:00:16]} 21. Re3 {[%clk 0:00:21]}  Rfd8 {[%clk 0:00:12]} 22. Bb1 {[%clk 0:00:19]}  Rxc1 {[%clk 0:00:10]} 23. Qxc1 {[%clk 0:00:20]}  Rc8 {[%clk 0:00:09]} 24. Qd1 {[%clk 0:00:19]}  Nd5 {[%clk 0:00:09]} 25. Re1 {[%clk 0:00:16]}  Qg5 {[%clk 0:00:07]} 26. Nf3 {[%clk 0:00:16]}  Qf4 {[%clk 0:00:06]} 27. Be4 {[%clk 0:00:13]}  h5 {[%clk 0:00:05]} 28. Qe2 {[%clk 0:00:10]}  Qf6 {[%clk 0:00:04]} 29. Ne5 {[%clk 0:00:09]}  Kg7 {[%clk 0:00:03]} 30. Qd3 {[%clk 0:00:09]}  Rd8 {[%clk 0:00:02]} 31. Qg3 {[%clk 0:00:07]}  Nf4 {[%clk 0:00:01]} 32. Bxb7 {[%clk 0:00:05]}  Rxd4 {[%clk 0:00:00]} 33. Nf3 {[%clk 0:00:05]} 1-0


[Site "https://www.chess.com"]

[Event "Titled Tuesday Blitz May 9 Late 2023"]
[White "Van Baar, Esper"]
[Black "dorpato"]
[WhiteFideId "1049321"]
[WhiteElo "2158"]
[BlackElo "2000"]
[Result "1-0"]
[Round "11"]
[TimeControl "180+2"]
[Date "2023.05.09"]
[WhiteClock "0:00:05"]
[BlackClock "0:00:00"]

1. e4 {[%clk 0:03:00]}  c5 {[%clk 0:02:59]} 2. Nf3 {[%clk 0:03:00]}  g6 {[%clk 0:02:59]} 3. c3 {[%clk 0:03:00]}  d5 {[%clk 0:02:52]} 4. exd5 {[%clk 0:02:59]}  Qxd5 {[%clk 0:02:51]} 5. d4 {[%clk 0:02:59]}  Bg7 {[%clk 0:02:47]} 6. Be3 {[%clk 0:02:56]}  cxd4 {[%clk 0:02:37]} 7. cxd4 {[%clk 0:02:44]}  Nc6 {[%clk 0:02:33]} 8. Nc3 {[%clk 0:02:44]}  Qd8 {[%clk 0:02:26]} 9. Bc4 {[%clk 0:02:31]}  Nf6 {[%clk 0:02:24]} 10. h3 {[%clk 0:02:30]}  O-O {[%clk 0:02:22]} 11. O-O {[%clk 0:02:29]}  Bf5 {[%clk 0:02:20]} 12. Ne5 {[%clk 0:02:23]}  Rc8 {[%clk 0:01:44]} 13. Qb3 {[%clk 0:02:01]}  Na5 {[%clk 0:01:12]} 14. Bxf7+ {[%clk 0:01:55]}  Kh8 {[%clk 0:01:10]} 15. Qd1 {[%clk 0:01:38]}  e6 {[%clk 0:01:02]} 16. Qf3 {[%clk 0:00:55]}  Qe7 {[%clk 0:00:16]} 17. g4 {[%clk 0:00:23]}  Bc2 {[%clk 0:00:14]} 18. Qe2 {[%clk 0:00:21]}  Ba4 {[%clk 0:00:12]} 19. Nxa4 {[%clk 0:00:20]}  Rxf7 {[%clk 0:00:10]} 20. Nxf7+ {[%clk 0:00:20]}  Qxf7 {[%clk 0:00:11]} 21. Nc3 {[%clk 0:00:19]}  Nc6 {[%clk 0:00:09]} 22. Rac1 {[%clk 0:00:17]}  Ne7 {[%clk 0:00:08]} 23. Rfd1 {[%clk 0:00:16]}  Rf8 {[%clk 0:00:06]} 24. Bg5 {[%clk 0:00:13]}  h6 {[%clk 0:00:05]} 25. Be3 {[%clk 0:00:12]}  h5 {[%clk 0:00:04]} 26. g5 {[%clk 0:00:11]}  Nh7 {[%clk 0:00:03]} 27. h4 {[%clk 0:00:11]}  Nf5 {[%clk 0:00:03]} 28. Ne4 {[%clk 0:00:10]}  Nxh4 {[%clk 0:00:02]} 29. Rc2 {[%clk 0:00:05]}  Nf3+ {[%clk 0:00:00]} 30. Kg2 {[%clk 0:00:05]} 1-0


[Site "https://www.chess.com"]

[Event "Titled Tuesday Blitz May 9 Late 2023"]
[White "KSho99"]
[Black "Dias, Joao Batista"]
[BlackFideId "2108240"]
[WhiteElo "2133"]
[BlackElo "1907"]
[Result "1-0"]
[Round "11"]
[TimeControl "180+2"]
[Date "2023.05.09"]
[WhiteClock "0:00:58"]
[BlackClock "0:02:23"]

1. Nf3 {[%clk 0:03:00]}  Nf6 {[%clk 0:02:59]} 2. e3 {[%clk 0:03:00]}  g6 {[%clk 0:02:59]} 3. b3 {[%clk 0:02:57]}  Bg7 {[%clk 0:03:00]} 4. Bb2 {[%clk 0:02:57]}  O-O {[%clk 0:03:00]} 5. d4 {[%clk 0:02:58]}  d6 {[%clk 0:03:01]} 6. Nbd2 {[%clk 0:02:55]}  a5 {[%clk 0:03:01]} 7. Be2 {[%clk 0:02:51]}  b6 {[%clk 0:03:01]} 8. O-O {[%clk 0:02:50]}  Bb7 {[%clk 0:03:01]} 9. c4 {[%clk 0:02:44]}  Nbd7 {[%clk 0:03:01]} 10. Qc2 {[%clk 0:02:44]}  Rc8 {[%clk 0:03:00]} 11. e4 {[%clk 0:02:39]}  c5 {[%clk 0:02:52]} 12. d5 {[%clk 0:02:38]}  Ng4 {[%clk 0:02:49]} 13. Bxg7 {[%clk 0:02:35]}  Kxg7 {[%clk 0:02:50]} 14. Qc3+ {[%clk 0:02:32]}  Nge5 {[%clk 0:02:49]} 15. Nxe5 {[%clk 0:02:29]}  dxe5 {[%clk 0:02:49]} 16. f4 {[%clk 0:02:24]}  f6 {[%clk 0:02:49]} 17. Bg4 {[%clk 0:02:16]}  Rc7 {[%clk 0:02:44]} 18. Bxd7 {[%clk 0:02:11]}  Qxd7 {[%clk 0:02:40]} 19. fxe5 {[%clk 0:02:11]}  fxe5 {[%clk 0:02:40]} 20. Rxf8 {[%clk 0:01:56]}  Kxf8 {[%clk 0:02:39]} 21. Rf1+ {[%clk 0:01:52]}  Kg8 {[%clk 0:02:39]} 22. Qxe5 {[%clk 0:01:52]}  Qd6 {[%clk 0:02:40]} 23. Nf3 {[%clk 0:01:25]}  Qxe5 {[%clk 0:02:39]} 24. Nxe5 {[%clk 0:01:26]}  Bc8 {[%clk 0:02:37]} 25. Rf7 {[%clk 0:01:13]}  Rb7 {[%clk 0:02:33]} 26. a4 {[%clk 0:00:59]}  Kh8 {[%clk 0:02:25]} 27. Rf8+ {[%clk 0:00:58]}  Kg7 {[%clk 0:02:23]} 28. Rxc8 {[%clk 0:00:58]} 1-0


[Site "https://www.chess.com"]

[Event "Titled Tuesday Blitz May 9 Late 2023"]
[White "Sailer, Mike"]
[Black "Prado, Alexandra"]
[WhiteFideId "2012901"]
[BlackFideId "3301346"]
[WhiteElo "2109"]
[BlackElo "1759"]
[Result "1-0"]
[Round "11"]
[TimeControl "180+2"]
[Date "2023.05.09"]
[WhiteClock "0:00:22"]
[BlackClock "0:00:00"]

1. d4 {[%clk 0:02:57]}  Nf6 {[%clk 0:02:56]} 2. Bg5 {[%clk 0:02:55]}  Ne4 {[%clk 0:02:47]} 3. Bf4 {[%clk 0:02:52]}  d6 {[%clk 0:02:34]} 4. f3 {[%clk 0:02:49]}  Nf6 {[%clk 0:02:34]} 5. Nc3 {[%clk 0:02:48]}  g6 {[%clk 0:02:34]} 6. e4 {[%clk 0:02:48]}  Bg7 {[%clk 0:02:33]} 7. Qd2 {[%clk 0:02:49]}  Nc6 {[%clk 0:02:27]} 8. Bc4 {[%clk 0:02:47]}  O-O {[%clk 0:02:23]} 9. Nge2 {[%clk 0:02:41]}  a6 {[%clk 0:02:24]} 10. a4 {[%clk 0:02:35]}  Re8 {[%clk 0:02:08]} 11. Bg5 {[%clk 0:02:23]}  Rb8 {[%clk 0:01:49]} 12. O-O {[%clk 0:02:19]}  Bd7 {[%clk 0:01:26]} 13. a5 {[%clk 0:01:57]}  Nb4 {[%clk 0:01:18]} 14. f4 {[%clk 0:01:40]}  h6 {[%clk 0:01:07]} 15. Bh4 {[%clk 0:01:36]}  d5 {[%clk 0:00:55]} 16. Bxf6 {[%clk 0:01:15]}  Bxf6 {[%clk 0:00:49]} 17. Nxd5 {[%clk 0:01:12]}  Nxd5 {[%clk 0:00:47]} 18. Bxd5 {[%clk 0:01:11]}  c6 {[%clk 0:00:47]} 19. Bc4 {[%clk 0:01:07]}  Bg4 {[%clk 0:00:42]} 20. c3 {[%clk 0:01:01]}  Bg7 {[%clk 0:00:22]} 21. Nc1 {[%clk 0:00:56]}  Qc7 {[%clk 0:00:19]} 22. h3 {[%clk 0:00:54]}  Bc8 {[%clk 0:00:18]} 23. Nd3 {[%clk 0:00:54]}  b5 {[%clk 0:00:09]} 24. Bb3 {[%clk 0:00:41]}  e6 {[%clk 0:00:08]} 25. Ne5 {[%clk 0:00:35]}  Bb7 {[%clk 0:00:06]} 26. f5 {[%clk 0:00:29]}  exf5 {[%clk 0:00:05]} 27. Bxf7+ {[%clk 0:00:27]}  Kh7 {[%clk 0:00:02]} 28. Bxg6+ {[%clk 0:00:27]}  Kh8 {[%clk 0:00:02]} 29. Bxe8 {[%clk 0:00:22]}  Rxe8 {[%clk 0:00:00]} 30. Rxf5 {[%clk 0:00:22]} 1-0